Workbook

Sheet 2025년 추정가
B2: 행복기숙사 미화용역비 산출내역서(2025. 03. ~2026. 12.) | Q2: 1
M3: (단위: 원)
B4: 구 분 | G4: 주요내용 | L4: 합계금액 | N4: 비고 | O4: 기타
G5: 미화원(남) | H5: 미화원(여) | L5: 월간 | M5: 연간
B6: 시간당 급여 | G6: 10030 | H6: 10030
B7: 1일 근무시간 (시간) | G7: 7 | H7: 7
B8: 인 원 (명) | G8: 1 | H8: 6 | L8: =SUM(G8:K8) -> 7 | M8: 명
B9: 직접관리비 | C9: 인건비 | D9: 급여 | E9: 기 본 급 | F9: 기 본 급 | G9: =((G7*5)+G7)*(365/12/7)*G6 -> 1830475 | H9: =((H7*5)+H7)*(365/12/7)*H6 -> 1830475 | L9: =G9*$G$8+J9*$J$8+H9*$H$8+$I$8*I9+K9*$K$8 -> 12813325 | M9: =L9*12*$Q$2 -> 153759900 | O9: 주 40시간 미만 근로자의 월 급여 계산식 | Q9: 월(7*5*52주)+7시간 | R9: =((7*5*52)+7)/12 -> 152.25
F10: 직무(직책)수당 | G10: 100000 | L10: =G10*$G$8+J10*$J$8+H10*$H$8+$I$8*I10+K10*$K$8 -> 100000 | M10: =L10*12*$Q$2 -> 1200000 | O10: (7시간×5일+7시간(주휴))×(365일/7일/12개월)×시급 | Q10: 주7*52 | R10: =7*52/12 -> 30.33333333
F11: 교 통 비 | G11: 100000 | H11: 100000 | L11: =G11*$G$8+J11*$J$8+H11*$H$8+$I$8*I11+K11*$K$8 -> 700000 | M11: =L11*12*$Q$2 -> 8400000 | R11: =SUM(R9:R10) -> 182.5833333
F12: 식대보조비 | G12: 100000 | H12: 100000 | L12: =G12*$G$8+J12*$J$8+H12*$H$8+$I$8*I12+K12*$K$8 -> 700000 | M12: =L12*12*$Q$2 -> 8400000
F13: 연 차(10일) | G13: =ROUND((G9+G10+G11+G12)/$R$11*G7*$O$13/12,0) -> 68066 | H13: =ROUND((H9+H10+H11+H12)/$R$11*H7*$O$13/12,0) -> 64871 | L13: =G13*$G$8+J13*$J$8+H13*$H$8+$I$8*I13+K13*$K$8 -> 457292 | M13: =L13*12*$Q$2 -> 5487504 | N13: 근로기준법 제 60조 | O13: 10
F14: 상 여 금 | G14: 70000 | H14: 70000 | L14: =G14*$G$8+J14*$J$8+H14*$H$8+$I$8*I14+K14*$K$8 -> 490000 | M14: =L14*12*$Q$2 -> 5880000
E15: 소 계 | G15: =SUM(G9:G14) -> 2268541 | H15: 2165346 | L15: 15260617 | M15: =L15*12 -> 183127404
D16: 퇴직금 | G16: =ROUND(G15/12,-1) -> 189050 | H16: =ROUND(H15/12,-1) -> 180450 | L16: =G16*$G$8+J16*$J$8+H16*$H$8+$I$8*I16+K16*$K$8 -> 1271750 | M16: =L16*12*Q2 -> 15261000
D17: 4대보험 | E17: 국민연금(100%) | G17: =ROUND((G15)*4.5%*$Q$18,-1) -> 102080 | H17: =ROUND((H15)*4.5%*$Q$18,-1) -> 97440 | L17: =G17*$G$8+J17*$J$8+H17*$H$8+$I$8*I17+K17*$K$8 -> 686720 | M17: =L17*12*$Q$2 -> 8240640 | N17: 국민연금법 제 88조 | O17: 국민연금 | P17: 0.045
E18: 건강보험 | G18: =ROUND((G15)*3.545%,-1) -> 80420 | H18: =ROUND((H15)*3.545%,-1) -> 76760 | L18: =G18*$G$8+J18*$J$8+H18*$H$8+$I$8*I18+K18*$K$8 -> 540980 | M18: =L18*12*$Q$2 -> 6491760 | N18: 국민건강보험법 제69조 및 동법 시행령 제44조 | O18: 건강보험 | P18: 0.03545 | Q18: 1
E19: 노인장기요양보험 | G19: =ROUND(G18*12.95%,-1) -> 10410 | H19: =ROUND(H18*12.95%,-1) -> 9940 | L19: =G19*$G$8+J19*$J$8+H19*$H$8+$I$8*I19+K19*$K$8 -> 70050 | M19: =L19*12*$Q$2 -> 840600 | N19: 노인장기요양보험법 제 9조 동법 시행령 제4조 | O19: 노인장기요양보험 | P19: 건강 X 12..95%
E20: 고용보험 | G20: =ROUND((G15)*1.15%,-1) -> 26090 | H20: =ROUND((H15)*1.15%,-1) -> 24900 | L20: =G20*$G$8+J20*$J$8+H20*$H$8+$I$8*I20+K20*$K$8 -> 175490 | M20: =L20*12*$Q$2 -> 2105880 | N20: 고용보험법 제 6조 | O20: 고용보험 | P20: 0.9%+0.25%
E21: 산재보험 | G21: =ROUND((G15)*1.03%,-1) -> 23370 | H21: =ROUND((H15)*1.03%,-1) -> 22300 | L21: =G21*$G$8+J21*$J$8+H21*$H$8+$I$8*I21+K21*$K$8 -> 157170 | M21: =L21*12*$Q$2 -> 1886040 | N21: 산업재해보상보험법 제 4조 | O21: 산재보험 | P21: 0.0103
E22: 소 계 | G22: =SUM(G17:G21) -> 242370 | H22: 231340 | L22: 1630410 | M22: 19564920
D23: 합 계 | G23: =SUM(G15,G16,G22) -> 2699961 | H23: 2577136 | L23: 18162777 | M23: 217953324
C24: 경비 | D24: 청소 소모용품비 | G24: 70000 | H24: 70000 | L24: =G24*$G$8+J24*$J$8+H24*$H$8+$I$8*I24+K24*$K$8 -> 490000 | M24: =L24*12*$Q$2 -> 5880000
D25: 피복 및 장구비 | G25: 10000 | H25: 10000 | L25: =G25*$G$8+J25*$J$8+H25*$H$8+$I$8*I25+K25*$K$8 -> 70000 | M25: 840000
D26: 청소차량 운영비 | M26: 0
D27: 법정교육비 (안전,보건,관리자) | L27: =G27*$G$8+J27*$J$8+H27*$H$8+$I$8*I27+K27*$K$8 -> 0 | M27: 0
D28: 장애인분담금 | L28: =G28*$G$8+J28*$J$8+H28*$H$8+$I$8*I28+K28*$K$8 -> 0 | M28: 0
D29: 복리후생비 | G29: 10000 | H29: 10000 | L29: =G29*$G$8+J29*$J$8+H29*$H$8+$I$8*I29+K29*$K$8 -> 70000 | M29: 840000
D30: 합 계 | G30: =SUM(G24:G29) -> 90000 | H30: =SUM(H24:H29) -> 90000 | L30: =G30*$G$8+J30*$J$8+H30*$H$8+$I$8*I30+K30*$K$8 -> 630000 | M30: =SUM(M24:M29) -> 7560000
C31: 직접관리비 총계 | L31: =SUM(L23+L30) -> 18792777 | M31: =L31*12 -> 225513324
B32: 일반관리비 | G32: 직접관리비 * 3.5% | L32: =ROUND(L31*O32%,-1) -> 657750 | M32: =L32*12*Q2 -> 7893000 | N32: 일반관리비% | O32: 3.5
B33: 기업이윤 | G33: 직접관리비 * 3% | L33: =ROUND(L31*O33%,0) -> 563783 | M33: =L33*12*Q2 -> 6765396 | N33: 기업이윤% | O33: 3
B34: 공급가액 | L34: =L32+L33+L31 -> 20014310 | M34: =M31+M32+M33 -> 240171720
B35: VAT | L35: =ROUND(L34*10%,-1) -> 2001430 | M35: =L35*12 -> 24017160
B36: 년 총도급액 | L36: =L34+L35 -> 22015740 | M36: =L36*12 -> 264188880
B37: 2025. 03. ~2026. 12. (22개월) 총도급액 | G37: =L36*22 -> 484346280
A41: 동의대학교
